bitfinex/quotes_SOLUSD_20241220
["timestamp","ask_amount","ask_price","bid_price","bid_amount"]
[1734665845200,9.92776537,196.91,196.83,0.76168419]
[1734665845383,9.92776537,196.89,196.83,0.76168419]
[1734665846095,9.92776537,196.89,196.82,1.5127]
[1734665846299,9.92776537,196.89,196.82,11.44046537]
[1734665848097,9.92776537,196.89,196.83,9.92776537]
[1734665848276,9.92776537,196.9,196.83,9.92776537]
[1734665850303,9.92776537,196.89,196.82,12.20231883]
[1734665850680,9.92776537,196.9,196.83,9.92776537]
[1734665851198,0.86776852,196.96,196.83,9.92776537]
[1734665851412,9.92776537,196.9,196.83,9.92776537]
[1734665853097,0.86776852,196.96,196.84,10.68959963]
[1734665853316,9.92776537,196.93,196.86,9.92776537]
[1734665853685,9.92776537,196.94,196.87,10.68944101]
[1734665853885,9.92776537,196.95,196.88,9.92776537]
[1734665854296,0.86776852,196.99,196.89,10.68937949]
[1734665854497,9.92776537,196.97,196.9,9.92776537]
[1734665854699,9.92776537,196.98,196.91,9.92776537]
[1734665855026,9.92776537,196.97,196.9,11.56096537]
[1734665855194,9.92776537,196.95,196.9,1.6332]
[1734665855389,9.92776537,196.95,196.87,10.68933009]
[1734665856006,9.92776537,196.94,196.87,10.68933009]
[1734665857221,9.92776537,196.95,196.87,10.68933009]
[1734665858062,9.92776537,196.95,196.88,9.92776537]
[1734665858319,9.92776537,196.96,196.89,10.68935152]
[1734665858520,9.92776537,196.96,196.89,9.92776537]
[1734665858710,20.0,196.99,196.89,10.68939395]
[1734665858907,9.92776537,196.98,196.91,9.92776537]
[1734665859798,29.92776537,196.99,196.92,9.92776537]
[1734665861391,9.92776537,196.98,196.91,10.68924814]
[1734665861610,9.92776537,196.98,196.91,0.76148277]
[1734665863708,9.92776537,196.96,196.87,0.76150898]
[1734665863910,30.0,196.89,196.86,16.08856537]
[1734665864120,30.0,196.89,196.86,6.1608]
[1734665864633,30.0,196.89,196.85,1.6332]
[1734665865123,39.92776537,196.89,196.85,1.6332]
[1734665866926,30.0,196.89,196.85,1.6332]
[1734665867219,30.0,196.89,196.82,9.92776537]
[1734665867220,39.92776537,196.89,196.82,9.92776537]
[1734665867426,9.92776537,196.86,196.8,1.5545]
[1734665867620,0.86776852,196.88,196.8,1.5545]
[1734665867621,39.92776537,196.85,196.8,1.5545]
[1734665867812,9.92776537,196.84,196.8,1.5545]
[1734665868015,9.92776537,196.81,196.75,1.5545]
[1734665868219,9.92776537,196.8,196.75,1.5545]
[1734665868525,39.92776537,196.79,196.72,10.68993881]
[1734665868945,30.0,196.79,196.72,16.27346609]
[1734665869226,45.51129265,196.79,196.72,16.27346609]
[1734665869806,30.0,196.79,196.73,15.51129265]
[1734665870623,30.0,196.79,196.72,15.51129265]
[1734665871108,15.51129265,196.78,196.71,23.27109265]
[1734665871307,30.0,196.76,196.72,15.51129265]
[1734665872530,30.0,196.76,196.71,1.5545]
[1734665873227,45.51129265,196.76,196.69,15.51129265]
[1734665873532,45.51129265,196.76,196.68,0.76237676]
[1734665873533,15.51129265,196.74,196.67,21.71659265]
[1734665873700,30.0,196.72,196.67,15.51129265]
[1734665873902,30.0,196.72,196.66,17.06579265]
[1734665875031,30.0,196.72,196.67,15.51129265]
[1734665875624,30.0,196.72,196.66,17.06579265]
[1734665875827,15.51129265,196.71,196.64,15.51129265]
[1734665876031,30.0,196.69,196.63,15.51129265]
[1734665876205,30.0,196.69,196.64,15.51129265]
[1734665876407,30.0,196.69,196.68,15.51129265]
[1734665877213,30.0,196.69,196.68,15.63678265]
[1734665878219,15.51129265,196.78,196.68,15.63678265]
[1734665878534,15.51129265,196.78,196.7,15.51129265]
[1734665878717,15.51129265,196.77,196.7,15.51129265]
[1734665880511,16.37906117,196.76,196.69,15.51129265]
[1734665880724,15.51129265,196.76,196.69,15.51129265]
[1734665881737,15.51129265,196.75,196.68,15.51129265]
[1734665882313,15.51129265,196.76,196.68,15.51129265]
[1734665882516,16.37906117,196.75,196.68,15.51129265]
[1734665882722,15.51129265,196.75,196.68,15.51129265]
[1734665883009,15.51129265,196.76,196.68,15.51129265]
[1734665883207,16.37906117,196.75,196.67,15.51129265]
[1734665883408,15.51129265,196.71,196.64,15.51129265]
[1734665884828,0.86776852,196.77,196.62,6.96778027]
[1734665884829,20.0,196.75,196.7,15.51129265]
[1734665885025,15.51129265,196.74,196.65,0.76258571]
[1734665885234,15.51129265,196.72,196.65,15.51129265]
[1734665885420,15.51129265,196.73,196.66,15.51129265]
[1734665885814,15.51129265,196.73,196.63,0.76240555]
[1734665885815,15.51129265,196.74,196.67,15.51129265]
[1734665886230,16.37906117,196.74,196.67,15.51129265]
[1734665886624,15.51129265,196.74,196.67,15.51129265]
[1734665888434,0.86776852,196.73,196.66,15.51129265]
[1734665888624,15.51129265,196.74,196.66,15.51129265]
[1734665889732,15.51129265,196.74,196.67,15.51129265]
[1734665889938,16.37906117,196.73,196.66,15.51129265]
[1734665890142,15.51129265,196.74,196.66,15.51129265]
[1734665890440,15.51129265,196.75,196.67,15.51129265]
[1734665890820,15.51129265,196.76,196.69,15.51129265]
[1734665891016,9.92970025,196.77,196.7,9.92970025]
[1734665891521,9.92970025,196.78,196.71,9.92970025]
[1734665891922,9.92970025,196.78,196.7,9.92970025]
[1734665892335,9.92970025,196.79,196.71,10.69205493]
[1734665892534,9.92970025,196.79,196.72,9.92970025]
[1734665892934,9.92970025,196.8,196.73,9.92970025]
[1734665893137,9.92970025,196.81,196.74,9.92970025]
[1734665893844,9.92970025,196.8,196.73,9.92970025]
[1734665894136,9.92970025,196.8,196.72,9.92970025]
[1734665894336,9.92970025,196.78,196.68,0.8877669]
[1734665894541,9.92970025,196.78,196.71,9.92970025]
[1734665894744,9.92970025,196.77,196.69,9.92970025]
[1734665894925,15.51541214,196.77,196.7,15.51541214]
[1734665896337,15.51541214,196.76,196.69,15.51541214]
[1734665896644,16.38318066,196.75,196.68,15.51541214]
[1734665897043,15.51541214,196.75,196.68,15.51541214]
[1734665897418,15.51541214,196.76,196.69,15.51541214]
[1734665898320,15.51541214,196.77,196.7,15.51541214]
[1734665898537,16.38318066,196.76,196.69,15.51541214]
[1734665898738,16.38318066,196.76,196.68,15.51541214]
[1734665900538,0.86776852,196.76,196.7,15.51541214]
[1734665900741,0.86776852,196.77,196.7,15.51541214]
[1734665900932,16.38318066,196.77,196.7,15.51541214]
[1734665901725,15.51541214,196.77,196.7,15.51541214]
[1734665901920,0.86776852,196.8,196.71,15.51541214]
[1734665901921,15.51541214,196.79,196.71,15.51541214]
[1734665902646,15.51541214,196.78,196.71,15.51541214]
[1734665903142,15.51541214,196.79,196.71,15.51541214]
[1734665903346,15.51541214,196.79,196.72,15.51541214]
[1734665903644,30.0,196.73,196.72,15.51541214]
[1734665904448,30.0,196.73,196.72,15.64090214]
[1734665904646,30.0,196.73,196.72,17.94022629]
[1734665905143,28.3334,196.73,196.72,24.41632629]
[1734665905352,16.38318066,196.84,196.72,24.41632629]
[1734665905353,15.51541214,196.83,196.73,0.12549]
[1734665905642,15.51541214,196.83,196.76,15.51541214]
[1734665906956,20.0,196.85,196.77,15.51541214]
[1734665907137,15.51541214,196.84,196.77,15.51541214]
[1734665908246,16.38318066,196.84,196.77,15.51541214]
[1734665908451,15.51541214,196.84,196.76,15.51541214]
[1734665909751,15.51541214,196.83,196.76,15.51541214]
[1734665909949,15.51541214,196.84,196.76,15.51541214]
[1734665910251,15.51541214,196.84,196.77,15.51541214]
[1734665910450,15.51541214,196.88,196.81,15.51541214]
[1734665910747,16.38318066,196.89,196.82,15.51541214]
[1734665910930,15.51541214,196.88,196.81,15.51541214]
[1734665912130,15.51541214,196.84,196.77,15.51541214]
[1734665912650,15.51541214,196.81,196.73,0.76198129]
[1734665912826,15.51541214,196.81,196.74,15.51541214]
[1734665913031,8.8892,196.87,196.75,15.51541214]
[1734665913032,15.51541214,196.82,196.75,15.51541214]
[1734665913364,0.86776852,196.86,196.74,15.51541214]
[1734665913365,15.51541214,196.81,196.74,15.51541214]
[1734665913574,15.51541214,196.82,196.75,15.51541214]
[1734665914533,15.51541214,196.83,196.76,15.51541214]
[1734665914850,15.51541214,196.84,196.77,15.51541214]
[1734665915050,15.51541214,196.85,196.77,15.51541214]
[1734665915958,15.51541214,196.9,196.83,15.51541214]
[1734665915959,0.86776852,196.89,196.83,15.51541214]
[1734665916267,15.51541214,196.91,196.83,15.51541214]
[1734665916431,16.38318066,196.9,196.83,15.51541214]
[1734665918078,15.51541214,196.9,196.83,15.51541214]
[1734665918551,0.86776852,196.92,196.84,15.51541214]
[1734665918552,35.51541214,196.92,196.84,15.51541214]
[1734665918732,15.51541214,196.92,196.84,15.51541214]
[1734665918932,16.38318066,196.91,196.84,15.51541214]
[1734665919351,15.51541214,196.9,196.83,15.51541214]
[1734665920739,15.51541214,196.91,196.84,15.51541214]
[1734665922353,15.51541214,196.9,196.83,15.51541214]
[1734665922735,35.51541214,196.92,196.84,15.51541214]
[1734665924335,15.51541214,196.91,196.84,15.51541214]
[1734665925049,35.51541214,196.92,196.84,15.51541214]
[1734665927051,29.91546478,196.92,196.85,9.91546478]
[1734665928963,29.91546478,196.92,196.82,0.76184337]
[1734665929267,9.91546478,196.91,196.82,0.76184337]
[1734665929471,9.91546478,196.91,196.84,9.91546478]
[1734665929763,9.91546478,196.91,196.82,0.76184337]
[1734665929764,9.91546478,196.89,196.82,9.91546478]
[1734665930270,10.7832333,196.88,196.8,9.91546478]
[1734665930843,9.91546478,196.87,196.8,9.91546478]
[1734665931143,0.86776852,196.86,196.76,0.76192995]
[1734665931466,0.86776852,196.86,196.77,9.91546478]
[1734665931467,9.91546478,196.85,196.77,9.91546478]
[1734665931762,10.7832333,196.84,196.77,9.91546478]
[1734665931967,9.91546478,196.83,196.76,9.91546478]
[1734665932366,9.91546478,196.84,196.77,9.91546478]
[1734665932669,9.91546478,196.85,196.78,9.91546478]
[1734665932963,15.50258088,196.85,196.78,15.50258088]
[1734665934463,15.50258088,196.86,196.79,15.50258088]
[1734665935358,0.86776852,196.85,196.78,15.50258088]
[1734665935558,16.3703494,196.85,196.77,15.50258088]
[1734665936069,15.50258088,196.85,196.77,15.50258088]
[1734665936578,15.50258088,196.86,196.78,15.50258088]
[1734665936747,0.86776852,196.85,196.78,15.50258088]
[1734665937366,15.50258088,196.86,196.78,15.50258088]
[1734665938573,16.3703494,196.88,196.81,15.50258088]
[1734665938958,16.3703494,196.89,196.81,15.50258088]
[1734665940273,15.50258088,196.88,196.81,15.50258088]
[1734665940592,0.86776852,196.87,196.81,15.50258088]
[1734665940946,16.3703494,196.87,196.79,15.50258088]
[1734665941151,15.50258088,196.86,196.78,15.50258088]
[1734665941372,15.50258088,196.87,196.8,15.50258088]
[1734665941574,15.50258088,196.88,196.81,15.50258088]
[1734665941753,15.50258088,196.9,196.83,15.50258088]
[1734665942342,0.86776852,196.91,196.79,0.76191877]
[1734665942343,16.3703494,196.91,196.84,15.50258088]
[1734665942568,15.50258088,196.91,196.84,15.50258088]
[1734665943567,16.3703494,196.93,196.86,15.50258088]
[1734665944147,16.3703494,196.93,196.83,6.2697]
[1734665944148,15.50258088,196.94,196.87,15.50258088]
[1734665944475,15.50258088,196.95,196.88,15.50258088]
[1734665945063,0.86776852,196.97,196.89,15.50258088]
[1734665945064,15.50258088,196.96,196.89,15.50258088]
[1734665946168,15.50258088,196.97,196.9,15.50258088]
[1734665947573,15.50258088,196.98,196.91,15.50258088]
[1734665947772,20.86776852,196.99,196.92,15.50258088]
[1734665948153,16.3703494,197.0,196.92,15.50258088]
[1734665948681,16.3703494,197.0,196.93,15.50258088]
[1734665948880,15.50258088,197.02,196.94,15.50258088]
[1734665949073,15.50258088,197.04,196.97,15.50258088]
[1734665949457,15.50258088,197.05,196.98,15.50258088]
[1734665949775,15.50258088,197.05,196.95,0.76144516]
[1734665949776,16.3703494,197.07,197.0,15.50258088]
[1734665950167,15.50258088,197.07,197.0,15.50258088]
[1734665950362,16.3703494,197.09,197.02,15.50258088]
[1734665950583,15.50258088,197.1,197.03,15.50258088]
[1734665951278,16.3703494,197.09,197.02,15.50258088]
[1734665951462,15.50258088,197.08,197.01,15.50258088]
[1734665951662,15.50258088,197.05,196.98,15.50258088]
[1734665951858,15.50258088,197.05,196.97,17.08728088]
[1734665952482,16.3703494,197.04,196.97,17.08728088]
[1734665953184,15.50258088,197.07,196.99,15.50258088]
[1734665953354,0.86776852,197.06,197.0,15.50258088]
[1734665953559,15.50258088,197.08,197.01,15.50258088]
[1734665953962,20.0,196.98,196.97,6.97e-05]
[1734665954156,23.776884,196.97,196.86,15.50258088]
[1734665954390,36.45481144,196.98,196.9,15.50258088]
[1734665954581,15.50258088,197.0,196.92,15.50258088]
[1734665954883,15.50258088,197.02,196.94,15.50258088]
[1734665955463,15.50258088,197.0,196.92,15.50258088]
[1734665955870,15.50258088,197.0,196.93,0.2747349]
[1734665956076,15.50258088,197.02,196.94,15.62807088]
[1734665956864,15.50258088,197.02,196.94,17.26817088]
[1734665957079,15.50258088,197.02,196.95,0.27442872]
[1734665957991,15.50258088,197.02,196.94,17.26817088]
[1734665958284,15.50258088,197.01,196.94,17.26817088]
[1734665960600,15.50258088,197.0,196.94,1.76559]
[1734665960767,20.0,197.04,196.94,1.76559]
[1734665960968,15.50258088,197.0,196.94,1.76559]
[1734665961671,15.50258088,197.01,196.94,1.76559]
[1734665962294,15.50258088,197.0,196.94,1.6401]
[1734665965897,15.50258088,197.01,196.94,17.14268088]
[1734665966693,15.50258088,197.05,196.98,15.50258088]
[1734665966897,15.50258088,196.99,196.95,0.27458791]
[1734665967103,15.50258088,196.97,196.9,15.50258088]
[1734665967274,15.50258088,196.96,196.89,15.50258088]
[1734665967591,15.50258088,196.97,196.9,15.50258088]
[1734665967896,15.50258088,196.98,196.91,15.50258088]
[1734665968972,9.90888311,196.97,196.9,9.90888311]
[1734665970794,20.0,197.02,196.92,9.90888311]
[1734665970993,0.951988,197.04,196.9,20.0]
[1734665970994,21.5588,197.07,196.96,15.59951851]
[1734665971297,15.47402851,197.04,196.97,15.47402851]
[1734665971793,15.47402851,197.05,196.97,15.47402851]
[1734665972675,15.47402851,197.05,196.97,15.74833519]
[1734665972980,15.47402851,197.05,196.97,17.39163519]
[1734665973180,15.47402851,197.06,196.98,15.47402851]
[1734665973380,15.47402851,197.06,196.99,15.47402851]
[1734665973588,15.47402851,197.06,196.99,15.7480977]
[1734665974284,15.47402851,197.06,196.98,15.59951851]
[1734665974489,15.47402851,196.99,196.98,20.0]
[1734665974690,20.0,196.95,196.82,23.37315665]
[1734665974992,15.47402851,196.92,196.84,15.47402851]
[1734665975201,15.47402851,196.88,196.82,7.89912814]
[1734665975592,15.47402851,196.88,196.81,0.12549]
[1734665975790,20.0,196.96,196.81,0.12549]
[1734665975791,15.47402851,196.9,196.83,0.12549]
[1734665976113,0.95238508,196.95,196.83,0.12549]
[1734665976114,15.47402851,196.92,196.84,15.47402851]
[1734665976985,15.47402851,196.92,196.85,0.4008999]
[1734665977289,15.47402851,196.93,196.86,15.47402851]
[1734665977684,15.47402851,196.92,196.85,15.87492841]
[1734665980515,15.47402851,196.93,196.86,15.47402851]
[1734665981416,15.47402851,196.95,196.88,15.47402851]
[1734665982608,15.47402851,196.94,196.87,15.74936404]
[1734665984223,15.47402851,196.93,196.87,0.27533553]
[1734665984506,15.47402851,196.93,196.87,0.12549]
[1734665987015,15.47402851,196.94,196.87,15.59951851]
[1734665987719,15.47402851,196.95,196.88,15.47402851]
[1734665988022,15.47402851,196.94,196.87,15.59951851]
[1734665988316,0.95220413,196.96,196.87,0.12549]
[1734665988317,15.47402851,196.93,196.87,0.12549]
[1734665989325,15.47402851,196.94,196.87,15.59951851]
[1734665990320,15.47402851,196.95,196.88,15.47402851]
[1734665990615,15.47402851,196.95,196.89,0.12549]
[1734665990916,15.47402851,196.97,196.9,15.47402851]
[1734665991114,15.47402851,196.96,196.9,15.47402851]
[1734665992222,15.47402851,196.96,196.89,15.47402851]
[1734665992901,15.47402851,196.94,196.87,15.47402851]
[1734665993101,15.47402851,196.93,196.87,0.12549]
[1734665993302,15.47402851,196.91,196.86,1.5907]
[1734665993523,15.47402851,196.9,196.83,15.47402851]
[1734665993723,15.47402851,196.9,196.84,15.59951851]
[1734665994710,15.47402851,196.92,196.85,15.74955686]
[1734665996828,15.47402851,196.92,196.85,15.47402851]
[1734665998328,15.47402851,196.9,196.83,15.47402851]
[1734665998537,17.06642851,197.0,196.82,0.12549]
[1734665998538,15.47402851,196.88,196.82,0.12549]
[1734666000329,15.47402851,196.87,196.81,7.67]
[1734666000525,15.47402851,196.85,196.78,15.47402851]
[1734666000821,15.47402851,196.84,196.77,15.47402851]
[1734666001415,15.47402851,196.84,196.78,0.12549]
[1734666001615,15.47402851,196.85,196.78,15.47402851]
[1734666002229,15.47402851,196.86,196.79,15.59951851]
[1734666002427,15.47402851,196.88,196.81,15.47402851]
[1734666002621,15.47402851,196.87,196.8,15.47402851]
[1734666002934,15.47402851,196.85,196.78,35.47402851]
[1734666003139,15.47402851,196.87,196.79,15.47402851]
[1734666004135,15.47402851,196.85,196.79,0.12549]
[1734666004517,15.47402851,196.86,196.79,15.59951851]
[1734666006031,15.47402851,196.88,196.81,15.47402851]
[1734666006222,15.47402851,196.9,196.83,15.47402851]
[1734666006940,2.52929694,196.92,196.8,0.27602537]
[1734666006941,15.47402851,196.88,196.81,15.59951851]
[1734666008127,15.47402851,196.87,196.8,15.47402851]
[1734666008331,15.47402851,196.86,196.79,21.53182851]
[1734666009018,15.47402851,196.86,196.8,0.12549]
[1734666009628,15.47402851,196.87,196.8,15.59951851]
[1734666010442,15.47402851,196.87,196.8,0.12549]
[1734666011146,15.47402851,196.88,196.81,15.47402851]
[1734666011434,15.47402851,196.92,196.85,15.47402851]
[1734666012238,9.13901107,196.98,196.82,0.40095504]
[1734666012239,15.47402851,196.93,196.86,15.47402851]
[1734666013116,9.13901107,196.98,196.88,15.47402851]
[1734666013117,15.47402851,196.94,196.88,15.47402851]
[1734666014239,15.47402851,196.94,196.87,35.59951851]
[1734666014812,15.47402851,196.95,196.89,0.12549]
[1734666015341,15.47402851,196.94,196.87,35.47402851]
[1734666016049,15.47402851,196.93,196.87,20.0]
[1734666016344,15.47402851,196.89,196.84,1.6171]
[1734666016850,15.47402851,196.9,196.84,1.6171]
[1734666017548,15.47402851,196.93,196.86,15.47402851]
[1734666017846,15.47402851,196.95,196.88,15.47402851]
[1734666018045,15.47402851,196.94,196.87,15.59951851]
[1734666018662,15.47402851,196.93,196.87,0.12549]
[1734666018861,0.95214756,196.97,196.86,20.0]
[1734666019162,15.47402851,196.92,196.85,15.59951851]
[1734666021441,15.47402851,196.92,196.85,15.47402851]
[1734666021749,15.47402851,196.91,196.84,17.09112851]
[1734666024527,15.47402851,196.92,196.84,17.09112851]
[1734666024728,15.47402851,196.94,196.87,15.47402851]
[1734666024960,9.90981787,196.96,196.89,9.90981787]
[1734666025164,9.90981787,196.97,196.9,9.90981787]
[1734666025540,9.90981787,196.98,196.91,9.90981787]
[1734666025929,9.90981787,196.98,196.88,0.2752815]
[1734666025930,9.90981787,196.99,196.92,9.90981787]
[1734666026668,0.95200435,197.01,196.93,9.90981787]
[1734666026871,9.90981787,197.02,196.95,9.90981787]
[1734666027031,15.47409627,197.03,196.96,15.47409627]
[1734666027942,16.42583675,197.02,196.95,15.47409627]
[1734666028142,15.47409627,197.0,196.94,15.47409627]
[1734666028330,15.47409627,197.0,196.93,15.47409627]
[1734666028532,15.47409627,197.01,196.94,15.47409627]
[1734666029056,15.47409627,197.0,196.94,15.47409627]
[1734666029255,15.47409627,196.98,196.92,17.10539627]
[1734666029433,15.47409627,196.97,196.91,15.47409627]
[1734666030335,15.47409627,196.99,196.92,15.47409627]
[1734666031956,15.47409627,197.0,196.93,15.47409627]
[1734666032134,20.95196853,197.03,196.95,15.47409627]
[1734666032135,15.47409627,197.02,196.95,15.47409627]
[1734666032449,15.47409627,197.0,196.94,15.47409627]
[1734666032658,23.776884,197.06,196.92,35.47409627]
[1734666032659,16.42602205,196.99,196.92,35.47409627]
[1734666032857,15.47409627,196.98,196.91,15.47409627]
[1734666034667,16.42607956,196.97,196.91,15.47409627]
[1734666034969,15.47409627,196.97,196.91,15.47409627]
[1734666037073,16.42609751,196.96,196.89,15.47409627]
[1734666037276,15.47409627,196.93,196.87,1.5355]
[1734666037593,15.47409627,196.94,196.87,17.00959627]
[1734666037947,16.42629518,196.93,196.86,15.47409627]
[1734666038344,15.47409627,196.91,196.84,15.47409627]
[1734666039983,15.47409627,196.91,196.85,15.47409627]
[1734666040268,15.47409627,196.91,196.84,15.47409627]
[1734666041261,16.42641686,196.9,196.83,15.47409627]
[1734666041469,15.47409627,196.89,196.82,17.07839627]
[1734666042370,16.42653562,196.88,196.81,15.47409627]
[1734666042754,15.47409627,196.87,196.8,15.47409627]
[1734666042947,16.42668614,196.86,196.79,15.47409627]
[1734666043148,16.42668614,196.86,196.78,1.5606]
[1734666043149,15.47409627,196.85,196.78,15.47409627]
[1734666043348,15.47409627,196.83,196.76,15.47409627]
[1734666043544,16.42685261,196.82,196.73,9.51732814]
[1734666043853,15.47409627,196.77,196.73,7.89912814]
[1734666044053,15.47409627,196.76,196.73,7.89912814]
[1734666044264,15.47409627,196.76,196.7,15.47409627]
[1734666044458,15.47409627,196.77,196.7,15.47409627]
[1734666045953,16.42712736,196.76,196.7,15.47409627]
[1734666046770,16.42712736,196.76,196.69,15.47409627]
[1734666049056,15.47409627,196.74,196.64,0.27707377]
[1734666049260,16.42718734,196.73,196.66,15.47409627]
[1734666049468,15.47409627,196.72,196.65,15.47409627]
[1734666049672,15.47409627,196.71,196.64,15.47409627]
[1734666049870,15.47409627,196.72,196.65,15.47409627]
[1734666052659,15.47409627,196.73,196.66,15.47409627]
[1734666052884,0.95323163,196.72,196.66,15.47409627]
[1734666053230,0.95322732,196.72,196.64,0.12549]
[1734666053480,16.42732359,196.72,196.65,15.47409627]
[1734666054985,15.47409627,196.72,196.66,15.47409627]
[1734666055684,15.47409627,196.7,196.64,15.47409627]
[1734666056371,15.47409627,196.7,196.63,15.47409627]
[1734666056766,15.47409627,196.7,196.64,15.47409627]
[1734666056975,15.47409627,196.72,196.65,15.47409627]
[1734666057373,15.47409627,196.72,196.66,15.47409627]
[1734666057579,0.95328897,196.75,196.69,15.47409627]
[1734666057879,15.47409627,196.78,196.72,15.47409627]
[1734666058382,15.47409627,196.8,196.73,15.47409627]
[1734666058907,15.47409627,196.79,196.72,15.47409627]
[1734666059492,15.47409627,196.78,196.72,15.47409627]
[1734666059864,15.47409627,196.78,196.71,0.27670247]
[1734666060069,15.47409627,196.76,196.69,15.47409627]
[1734666060480,15.47409627,196.77,196.71,0.12549]
[1734666060683,15.47409627,196.79,196.72,15.47409627]
[1734666060971,16.42694696,196.79,196.72,15.47409627]
[1734666061187,15.47409627,196.77,196.7,15.47409627]
[1734666061493,15.47409627,196.78,196.71,15.47409627]
[1734666061689,16.42705511,196.77,196.7,15.47409627]
[1734666062190,15.47409627,196.74,196.68,1.5276]
[1734666062689,15.47409627,196.75,196.68,17.00169627]
[1734666062898,15.47409627,196.76,196.69,15.47409627]
[1734666063493,15.47409627,196.75,196.68,17.00169627]
[1734666064195,15.47409627,196.76,196.69,15.47409627]
[1734666064390,15.47409627,196.77,196.7,15.47409627]
[1734666064597,15.47409627,196.76,196.69,15.47409627]
[1734666064804,15.47409627,196.74,196.67,15.47409627]
[1734666065109,15.47409627,196.76,196.69,15.47409627]
[1734666065483,15.47409627,196.77,196.71,0.12549]
[1734666065690,15.47409627,196.79,196.72,15.47409627]
[1734666066007,16.42696309,196.78,196.71,17.13438627]
[1734666066204,15.47409627,196.78,196.71,17.00889627]
[1734666067108,0.95292233,196.77,196.71,1.5348]
[1734666067311,15.47409627,196.78,196.71,1.5348]
[1734666067602,15.47409627,196.77,196.71,1.5348]
[1734666067803,23.776884,196.83,196.72,15.47409627]
[1734666067804,15.47409627,196.79,196.72,15.47409627]
[1734666068913,15.47409627,196.78,196.71,17.00889627]
[1734666069807,15.47409627,196.78,196.72,0.12549]
[1734666070006,16.42702771,196.82,196.75,15.47409627]
[1734666070211,15.47409627,196.85,196.78,15.47409627]
[1734666071606,15.47409627,196.86,196.79,15.47409627]
[1734666071813,15.47409627,196.88,196.81,15.47409627]
[1734666072110,15.47409627,196.9,196.83,15.47409627]
[1734666072309,15.47409627,196.91,196.85,15.47409627]
[1734666072607,15.47409627,196.94,196.87,15.47409627]
[1734666074512,15.47409627,196.95,196.88,15.47409627]
[1734666074982,16.42615866,196.94,196.88,15.47409627]
[1734666075181,15.47409627,196.93,196.85,0.27534442]
[1734666075386,15.47409627,196.91,196.84,15.47409627]
[1734666075686,8.8841,196.98,196.87,15.47409627]
[1734666075687,15.47409627,196.93,196.87,15.47409627]
[1734666076292,16.42632222,196.92,196.85,15.59958627]
[1734666076607,15.47409627,196.92,196.86,15.47409627]
[1734666076792,15.47409627,196.89,196.82,15.47409627]
[1734666077312,0.95244636,196.88,196.82,15.47409627]
[1734666077813,16.42654263,196.88,196.81,15.47409627]
[1734666078022,15.47409627,196.84,196.78,15.47409627]
[1734666078328,16.42671913,196.83,196.76,15.47409627]
[1734666078525,15.47409627,196.81,196.74,17.06009627]
[1734666078815,15.47409627,196.81,196.75,0.12549]
[1734666079200,15.47409627,196.82,196.75,15.59958627]
[1734666079513,2.49586829,196.89,196.72,15.47409627]
[1734666079514,15.47409627,196.79,196.72,15.47409627]
[1734666079709,16.42703437,196.78,196.71,15.47409627]
[1734666080293,15.47409627,196.78,196.72,0.12549]
[1734666081005,15.47409627,196.78,196.71,15.47409627]
[1734666081207,15.47409627,196.79,196.72,15.47409627]
[1734666081509,15.47409627,196.82,196.75,15.59958627]
[1734666081704,15.47409627,196.83,196.77,15.47409627]
[1734666081900,15.47409627,196.84,196.77,15.47409627]
[1734666082107,0.95269234,196.83,196.77,15.47409627]
[1734666082300,15.47409627,196.83,196.76,15.47409627]
[1734666082501,15.47409627,196.85,196.78,15.47409627]
[1734666082708,15.47409627,196.83,196.76,15.47409627]
[1734666085895,16.42679676,196.82,196.75,15.59958627]
[1734666086525,0.95270049,196.82,196.76,15.47409627]
[1734666087433,0.95270049,196.82,196.74,20.0]
[1734666087434,15.47409627,196.81,196.74,35.47409627]
[1734666087619,0.95284384,196.8,196.74,15.47409627]
[1734666088301,15.47409627,196.81,196.74,15.47409627]
[1734666088501,0.95283432,196.8,196.74,15.47409627]
[1734666089420,16.42693059,196.8,196.73,15.47409627]
[1734666091205,15.47409627,196.79,196.72,35.47409627]
[1734666091706,15.47409627,196.8,196.73,15.47409627]
[1734666092208,0.95291448,196.84,196.78,15.47409627]
[1734666092409,16.42676385,196.85,196.78,15.47409627]
[1734666092608,15.47409627,196.84,196.77,15.47409627]
[1734666093621,16.42676273,196.83,196.76,15.47409627]
[1734666094130,15.47409627,196.82,196.75,15.47409627]
[1734666094510,0.95277103,196.81,196.75,15.47409627]
[1734666094715,16.4268673,196.81,196.74,15.47409627]
[1734666095741,15.47409627,196.82,196.75,15.47409627]
[1734666095910,0.95279977,196.81,196.73,20.12549]
[1734666096110,15.47409627,196.82,196.75,15.47409627]
[1734666096310,0.95282128,196.81,196.75,15.47409627]
[1734666096821,15.47409627,196.82,196.75,15.47409627]
[1734666097660,0.95277336,196.81,196.75,15.47409627]
[1734666098154,15.47409627,196.82,196.75,15.47409627]
[1734666098311,0.95278232,196.81,196.75,15.47409627]
[1734666098514,16.42687859,196.81,196.74,15.47409627]